fUSD/lending_fUSD_20250503
["ID","MTS","AMOUNT","RATE_DAILY","PERIOD"]
[359757092,1746303045888,-4008.0,0.00019959,2]
[359757093,1746303045898,-243.771,0.00019959,2]
[359757094,1746303045907,-270.225,0.00019959,2]
[359757095,1746303045918,-877.0,0.00019959,2]
[359757096,1746303045927,-878.0,0.00019959,2]
[359757097,1746303045937,-1000.0,0.0001997,2]
[359757098,1746303045946,-1000.0,0.0001997,2]
[359757099,1746303045957,-886.47921775,0.0001997,2]
[359757100,1746303045967,-1000.0,0.0001997,2]
[359757101,1746303045977,-1914.02013276,0.0001997,2]
[359757102,1746303045986,-1000.0,0.0001997,2]
[359757103,1746303045996,-500.0,0.0001997,2]
[359757104,1746303046006,-4648.0,0.00019973,2]
[359757105,1746303046016,-500.0,0.00019973,2]
[359757106,1746303046025,-500.0,0.00019973,2]
[359757107,1746303046035,-500.0,0.00019973,2]
[359757108,1746303046044,-500.0,0.00019973,2]
[359757109,1746303046054,-500.0,0.00019973,2]
[359757110,1746303046063,-500.0,0.00019973,2]
[359757111,1746303046072,-500.0,0.00019973,2]
[359757112,1746303046081,-511.47586166,0.00019973,2]
[359757113,1746303046090,-500.0,0.00019973,2]
[359757114,1746303046099,-500.0,0.00019973,2]
[359757115,1746303046108,-500.0,0.00019973,2]
[359757116,1746303046119,-177.75275273,0.00019973,2]
[359757117,1746303046128,-502.98408913,0.00019973,2]
[359757118,1746303046138,-500.0,0.00019973,2]
[359757119,1746303046148,-500.0,0.00019973,2]
[359757120,1746303046159,-1649.59541145,0.00019985,2]
[359757121,1746303046168,-212.03805716,0.00019985,2]
[359757122,1746303046178,-500.0,0.00019985,2]
[359757123,1746303046190,-16083.8084257,0.00019986,2]
[359757124,1746303046200,-156660.6790239,0.00019986,2]
[359757125,1746303046209,-8597.5299866,0.00019986,2]
[359757126,1746303046218,-7369.4047586,0.00019986,2]
[359757127,1746303046227,-98753.3323961,0.00019986,2]
[359757128,1746303046236,-52206.7522685,0.00019986,2]
[359757129,1746303046246,-43930.0720308,0.00019986,2]
[359757130,1746303046255,-35653.3917931,0.00019986,2]
[359757131,1746303046264,-894.69465589,0.0001999,2]
[359757132,1746303046274,-894.69465589,0.0001999,2]
[359757133,1746303046284,-894.69465589,0.0001999,2]
[359757134,1746303046293,-666.0,0.00019999,2]
[359757135,1746303046302,-500.0,0.00019999,2]
[359757136,1746303046311,-666.0,0.00019999,2]
[359757137,1746303046321,-500.0,0.00019999,2]
[359757138,1746303046331,-666.0,0.00019999,2]
[359757139,1746303046342,-500.0,0.00019999,2]
[359757140,1746303046352,-300.0,0.00019999,2]
[359757141,1746303046362,-300.0,0.00019999,2]
[359757142,1746303046371,-503.31962313,0.00019999,2]
[359757143,1746303046381,-1000.0,0.00019999,2]
[359757144,1746303046390,-1000.0,0.00019999,2]
[359757145,1746303046400,-1000.0,0.00019999,2]
[359757146,1746303046414,-1000.0,0.00019999,2]
[359757147,1746303046424,-1000.0,0.00019999,2]
[359757148,1746303046433,-1000.0,0.00019999,2]
[359757149,1746303046443,-1000.0,0.00019999,2]
[359757150,1746303046452,-1000.0,0.00019999,2]
[359757151,1746303046461,-1000.0,0.00019999,2]
[359757152,1746303046470,-539.61120459,0.00019999,2]
[359757153,1746303046479,-434.2,0.00019999,2]
[359757154,1746303046488,-1329.0,0.00019999,2]
[359757155,1746303046498,-521.49175367,0.0002,2]
[359757156,1746303046507,-2454829.31721718,0.0002,2]
[359757157,1746303046516,-1726496.62688147,0.0002,2]
[359757158,1746303047040,-242188.76631482,0.0002,2]
[359757159,1746303047051,-3319.6,0.0002,2]
[359757160,1746303047186,-127.83386976,0.0002,2]
[359757161,1746303047260,5031.31,0.00013699,2]
[359757162,1746303047346,5031.31,0.00013699,2]
[359757163,1746303047421,5031.31,0.00013699,2]
[359757164,1746303047471,290.60471,0.00013699,2]
[359757165,1746303047497,4740.70529,0.00013699,2]
[359757166,1746303047553,5031.31,0.00013699,2]
[359757167,1746303047570,-450.0,0.00019854,2]
[359757168,1746303047579,-13901.0,0.0002,2]
[359757169,1746303047620,-268.61,0.0002,2]
[359757170,1746303047637,-450.0,0.00019854,2]
[359757171,1746303047647,-191901.11929825,0.0002,2]
[359757172,1746303047663,-29480.89558656,0.0002,2]
[359757173,1746303047695,5031.31,0.00013699,2]
[359757174,1746303047707,-738.05,0.0002,2]
[359757175,1746303047756,5031.31,0.00013699,2]
[359757176,1746303047900,5031.31,0.00013699,2]
[359757177,1746303047991,5031.31,0.00013699,2]
[359757178,1746303048047,5031.31,0.00013699,2]
[359757179,1746303048281,-450.0,0.00019854,2]
[359757180,1746303048290,-450.0,0.00019868,2]
[359757181,1746303048300,-6984.66739185,0.0002,2]
[359757182,1746303048326,290.60471,0.00013699,2]
[359757183,1746303048352,4740.70529,0.00013699,2]
[359757184,1746303048370,-500.0,0.00019868,2]
[359757185,1746303048382,-5.37,0.00019868,2]
[359757186,1746303048391,-33331.68034996,0.0002,2]
[359757187,1746303048402,-55113.40257342,0.0002,2]
[359757188,1746303048441,5031.31,0.00013699,2]
[359757189,1746303048477,5031.31,0.00013699,2]
[359757190,1746303048653,5031.31,0.00013699,2]
[359757191,1746303048732,5031.31,0.00013699,2]
[359757192,1746303048904,5031.31,0.00013699,2]
[359757193,1746303049354,5031.31,0.00013699,2]
[359757194,1746303049857,5031.31,0.00013699,2]
[359757195,1746303050279,5031.31,0.00013699,2]
[359757196,1746303050746,5031.40091367,0.00013699,2]
[359757197,1746303075971,290.60471,0.00019496,2]
[359757198,1746303148363,3333.050405,0.0003287,120]
[359757199,1746303151019,300.0,0.00027397,30]
[359757200,1746303152292,3333.050405,0.0003287,119]
[359757201,1746303156234,3333.050405,0.0003287,118]
[359757202,1746303159508,3333.050405,0.0003287,117]
[359757203,1746303162814,3333.050405,0.0003287,116]
[359757204,1746303165883,3333.050405,0.0003287,115]
[359757205,1746303169315,3333.050405,0.0003287,114]
[359757206,1746303173860,3333.050405,0.0003287,113]
[359757207,1746303176812,3333.050405,0.0003287,112]
[359757209,1746303180957,3333.050405,0.0003287,111]
[359757210,1746303185363,3333.050405,0.0003287,110]
[359757211,1746303189164,3333.050405,0.0003287,109]
[359757212,1746303194443,3333.050405,0.0003287,108]
[359757213,1746303197916,3333.050405,0.0003287,107]
[359757214,1746303201044,3333.050405,0.0003287,106]
[359757215,1746303203996,3333.050405,0.0003287,105]
[359757216,1746303206994,3333.050405,0.0003287,104]
[359757217,1746303210031,3333.050405,0.0003287,103]
[359757218,1746303213164,3333.050405,0.0003287,102]
[359757219,1746303218966,3333.050405,0.0003287,101]
[359757220,1746303222461,3333.050405,0.0003287,100]
[359757221,1746303227510,3333.050405,0.0003287,99]
[359757222,1746303231001,3333.050405,0.0003287,98]
[359757223,1746303235326,3333.050405,0.0003287,97]
[359757224,1746303240116,3333.050405,0.0003287,96]
[359757225,1746303243113,3333.050405,0.0003287,95]
[359757226,1746303246053,3333.050405,0.0003287,94]
[359757227,1746303250728,3333.050405,0.0003287,93]
[359757228,1746303255448,3333.050405,0.0003287,92]
[359757229,1746303258621,3333.050405,0.0003287,91]
[359757230,1746303265069,209.03506577,0.00032,60]
[359757231,1746303265900,3333.050405,0.0003287,90]
[359757232,1746303272977,3333.050405,0.0003287,89]
[359757233,1746303276382,3333.050405,0.0003287,88]
[359757234,1746303279727,3333.050405,0.0003287,87]
[359757235,1746303283033,3333.050405,0.0003287,86]
[359757236,1746303285875,3333.050405,0.0003287,85]
[359757237,1746303289047,3333.050405,0.0003287,84]
[359757238,1746303294889,3333.050405,0.0003287,83]
[359757239,1746303297723,3333.050405,0.0003287,82]
[359757240,1746303300391,3333.050405,0.0003287,81]
[359757242,1746303305222,3333.050405,0.0003287,80]
[359757243,1746303309397,3333.050405,0.0003287,79]
[359757244,1746303312868,3333.050405,0.0003287,78]
[359757245,1746303325560,3333.050405,0.0003287,77]
[359757246,1746303332294,3333.050405,0.0003287,76]
[359757247,1746303343798,3333.050405,0.0003287,75]
[359757248,1746303351261,3333.050405,0.0003287,74]
[359757249,1746303379473,333.050405,0.0003287,73]
[359757250,1746303382366,333.050405,0.0003287,72]
[359757251,1746303385324,333.050405,0.0003287,71]
[359757252,1746303388916,333.050405,0.0003287,70]
[359757253,1746303393521,333.050405,0.0003287,69]
[359757254,1746303397181,333.050405,0.0003287,68]
[359757255,1746303400926,333.050405,0.0003287,67]
[359757257,1746303403620,1000.0,0.00018881,2]
[359757258,1746303407206,333.050405,0.0003287,66]
[359757259,1746303415053,333.050405,0.0003287,65]
[359757260,1746303418001,333.050405,0.0003287,64]
[359757261,1746303421892,333.050405,0.0003287,63]
[359757262,1746303425264,333.050405,0.0003287,62]
[359757263,1746303428652,333.050405,0.0003287,61]
[359757264,1746303442952,333.050405,0.0003,30]
[359757266,1746303461739,333.050405,0.0003,31]
[359757267,1746303464391,333.050405,0.0003,32]
[359757268,1746303467371,333.050405,0.0003,33]
[359757269,1746303475520,333.050405,0.0003,34]
[359757270,1746303478848,333.050405,0.0003,35]
[359757271,1746303481798,239.8512896,0.000328,120]
[359757272,1746303481863,250.0,0.00017,2]
[359757273,1746303481996,333.050405,0.0003,36]
[359757274,1746303482912,300.0,0.00019,2]
[359757275,1746303571802,11054.58057536,0.00019494,2]
[359757276,1746303580130,676.81,0.00016911,2]
[359757277,1746303580340,676.81,0.00019175,2]
[359757278,1746303580752,333.050405,0.0003,38]
[359757279,1746303584563,333.050405,0.0003,39]
[359757280,1746303589047,333.050405,0.0003,40]
[359757281,1746303592198,333.050405,0.0003,41]
[359757282,1746303595894,333.050405,0.0003,42]
[359757283,1746303607455,333.050405,0.0003,43]
[359757284,1746303611526,166.68,0.00019354,2]
[359757285,1746303615169,333.050405,0.0003,44]
[359757286,1746303618947,333.050405,0.0003,45]
[359757287,1746303622219,333.050405,0.0003,46]
[359757288,1746303625557,333.050405,0.0003,47]
[359757289,1746303629327,333.050405,0.0003,48]
[359757290,1746303633164,333.050405,0.0003,49]
[359757291,1746303642846,166.78,0.00015142,2]
[359757292,1746303647476,333.050405,0.0003,50]
[359757293,1746303650991,333.050405,0.0003,51]
[359757294,1746303654145,333.050405,0.0003,52]
[359757295,1746303658750,333.050405,0.0003,53]
[359757296,1746303664739,333.050405,0.0003,54]
[359757297,1746303668002,333.050405,0.0003,55]
[359757298,1746303671372,333.050405,0.0003,56]
[359757299,1746303674508,333.050405,0.0003,57]
[359757300,1746303677742,333.050405,0.0003,58]
[359757301,1746303681079,333.050405,0.0003,59]
[359757302,1746303713073,303.33273231,0.000195,2]
[359757303,1746303810274,155.77,0.00018928,2]
[359757305,1746303989354,170.25274647,0.00019493,2]
[359757306,1746303993785,1997.0,0.00032876,60]
[359757308,1746304028488,1239.0445,0.000153,2]
[359757309,1746304035601,2062.40744423,0.00015,2]
[359757316,1746304077255,877.14675173,0.0001,2]
[359757326,1746304142160,9949.12251777,0.00019493,2]
[359757335,1746304165446,2494.27845789,0.00019493,2]
[359757338,1746304184928,173.77,0.00019178,2]
[359757343,1746304209650,170.25274646,0.00019493,2]
[359757344,1746304213103,150.0,0.00032867,60]
[359757347,1746304231870,-300.0,0.00019537,2]
[359757348,1746304231880,-1200.0,0.00019537,2]
[359757349,1746304231889,-300.0,0.00019537,2]
[359757350,1746304231898,-250.0,0.00019538,2]
[359757351,1746304231907,-9949.12251777,0.00019538,2]
[359757352,1746304231918,-2494.27845789,0.00019538,2]
[359757353,1746304231928,-187.323863,0.00019572,2]
[359757354,1746304231938,-189.76331,0.00019572,2]
[359757355,1746304231947,-151.0,0.00019581,2]
[359757356,1746304231956,-151.0,0.00019581,2]
[359757357,1746304231966,-668.65185757,0.00019581,2]
[359757358,1746304231976,-207.4,0.00019581,2]
[359757359,1746304231988,-9949.12251777,0.00019583,2]
[359757360,1746304231998,-2494.27845789,0.00019583,2]
[359757361,1746304232008,-500.0,0.00019591,2]
[359757362,1746304232017,-500.0,0.00019591,2]
[359757363,1746304232027,-500.0,0.00019591,2]
[359757364,1746304232036,-500.0,0.00019591,2]
[359757365,1746304232046,-500.0,0.00019591,2]
[359757366,1746304232057,-475.98173615,0.00019591,2]
[359757367,1746304232067,-500.0,0.00019591,2]
[359757368,1746304232076,-500.0,0.00019591,2]
[359757369,1746304232086,-500.0,0.00019591,2]
[359757370,1746304232095,-173.27,0.00019592,2]
[359757371,1746304232104,-450.0,0.00019592,2]
[359757372,1746304232113,-450.0,0.00019592,2]
[359757373,1746304232123,-519.44,0.00019592,2]
[359757374,1746304232132,-450.0,0.00019592,2]
[359757375,1746304232142,-450.0,0.00019592,2]
[359757376,1746304232151,-450.0,0.00019592,2]
[359757378,1746304232160,-450.0,0.00019592,2]
[359757380,1746304232170,-450.0,0.00019592,2]
[359757382,1746304232179,-607.94,0.00019592,2]
[359757384,1746304232188,-450.0,0.00019592,2]
[359757386,1746304232197,-450.0,0.00019592,2]
[359757388,1746304232206,-450.0,0.00019592,2]
[359757390,1746304232215,-462.31,0.00019592,2]
[359757392,1746304232224,-643.68,0.00019592,2]
[359757394,1746304232234,-1097.27,0.00019592,2]
[359757396,1746304232243,-450.0,0.00019592,2]
[359757398,1746304232252,-450.0,0.00019592,2]
[359757400,1746304232261,-577.35,0.00019592,2]
[359757403,1746304232271,-450.0,0.00019592,2]
[359757405,1746304232281,-1040.58,0.00019592,2]
[359757408,1746304232290,-450.0,0.00019592,2]
[359757412,1746304232300,-450.0,0.00019592,2]
[359757414,1746304232309,-450.0,0.00019592,2]
[359757417,1746304232318,-725.9,0.00019592,2]
[359757420,1746304232328,-450.0,0.00019592,2]
[359757423,1746304232337,-57828.7661256,0.00019592,2]
[359757428,1746304232356,-6000.0,0.00019592,2]
[359757430,1746304232370,-1050.0,0.00019592,2]
[359757434,1746304232394,-1578.04109096,0.00019592,2]
[359757436,1746304232411,-4478.65437438,0.00019592,2]
[359757437,1746304232426,-739.489561,0.00019592,2]
[359757438,1746304232437,-15758.65884806,0.00019592,2]
[359757439,1746304232447,-5086.27,0.00019592,2]
[359757440,1746304232456,-535.38,0.00019592,2]
[359757441,1746304232465,-493.44,0.00019592,2]
[359757442,1746304232474,-481.05,0.00019592,2]
[359757443,1746304232483,-450.0,0.00019592,2]
[359757444,1746304232492,-450.0,0.00019592,2]
[359757445,1746304232501,-450.0,0.00019592,2]
[359757446,1746304232510,-450.0,0.00019592,2]
[359757447,1746304232519,-450.0,0.00019592,2]
[359757448,1746304232528,-450.0,0.00019592,2]
[359757449,1746304232537,-450.0,0.00019592,2]
[359757450,1746304232546,-720.19,0.00019592,2]
[359757451,1746304232555,-807.25,0.00019592,2]
[359757452,1746304232565,-536.35,0.00019592,2]
[359757453,1746304232575,-476.75,0.00019592,2]
[359757454,1746304232584,-295.33744597,0.00019592,2]
[359757455,1746304237952,-154.66255403,0.00019592,2]
[359757456,1746304237962,-360.8891478,0.00019592,2]
[359757457,1746304238006,-89.1108522,0.00019592,2]
[359757458,1746304238016,-1692.9331478,0.00019592,2]
[359757478,1746304238506,-500.0,0.00019592,2]
[359757480,1746304238518,-1454.0268522,0.00019592,2]
[359757482,1746304238527,-878.35945351,0.00019592,2]
[359757552,1746304240090,-906.82054649,0.00019592,2]
[359757553,1746304240101,-450.0,0.00019592,2]
[359757554,1746304240111,-3713.12,0.00019592,2]
[359757555,1746304240121,-667.39,0.00019592,2]
[359757556,1746304240130,-512.2,0.00019592,2]
[359757557,1746304240140,-450.0,0.00019592,2]
[359757558,1746304240149,-450.0,0.00019592,2]
[359757559,1746304240159,-1837.43,0.00019592,2]
[359757560,1746304240168,-450.0,0.00019592,2]
[359757561,1746304240177,-450.0,0.00019592,2]
[359757562,1746304240186,-450.0,0.00019592,2]
[359757563,1746304240195,-450.0,0.00019592,2]
[359757564,1746304240205,-450.0,0.00019592,2]
[359757565,1746304240213,-620.45,0.00019592,2]
[359757566,1746304240222,-522.61231872,0.00019592,2]
[359757567,1746304240231,-450.0,0.00019592,2]
[359757568,1746304240240,-450.0,0.00019592,2]
[359757569,1746304240250,-4084.64,0.00019592,2]
[359757570,1746304240259,-290.81358307,0.00019592,2]
[359757571,1746304240269,-467.71,0.00019592,2]
[359757572,1746304240278,-450.0,0.00019592,2]
[359757573,1746304240288,-450.0,0.00019592,2]
[359757574,1746304240297,-831.59,0.00019592,2]
[359757575,1746304240307,-450.0,0.00019592,2]
[359757576,1746304240316,-629.58,0.00019592,2]
[359757577,1746304240326,-17892.57319654,0.00019592,2]
[359757578,1746304240338,-6297.43812053,0.00019592,2]
[359757579,1746304240349,-81108.43541917,0.00019592,2]
[359757580,1746304240359,-591.23,0.00019593,2]
[359757581,1746304240368,-159.0,0.00019593,2]
[359757582,1746304240382,-450.0,0.00019593,2]
[359757583,1746304240391,-450.0,0.00019593,2]
[359757584,1746304240401,-450.0,0.00019593,2]
[359757585,1746304240410,-450.0,0.00019593,2]
[359757586,1746304240419,-450.0,0.00019593,2]
[359757587,1746304240429,-450.0,0.00019593,2]
[359757588,1746304240438,-450.0,0.00019593,2]
[359757589,1746304240447,-450.0,0.00019593,2]
[359757590,1746304240458,-450.0,0.00019593,2]
[359757591,1746304240467,-450.0,0.00019593,2]
[359757592,1746304240476,-889.35,0.00019593,2]
[359757593,1746304240485,-450.0,0.00019593,2]
[359757594,1746304240492,-450.0,0.00019593,2]
[359757595,1746304240501,-450.0,0.00019593,2]
[359757596,1746304240509,-253.62358516,0.00019593,2]
[359757597,1746304240518,-450.0,0.00019593,2]
[359757598,1746304240527,-450.0,0.00019593,2]
[359757599,1746304240536,-450.0,0.00019593,2]
[359757600,1746304240545,-450.0,0.00019593,2]
[359757601,1746304240554,-450.0,0.00019593,2]
[359757602,1746304240564,-450.0,0.00019593,2]
[359757603,1746304240573,-450.0,0.00019593,2]
[359757604,1746304240582,-537.08,0.00019593,2]
[359757605,1746304240592,-450.0,0.00019593,2]
[359757606,1746304240601,-450.0,0.00019593,2]
[359757607,1746304240610,-450.0,0.00019593,2]
[359757608,1746304240620,-450.0,0.00019593,2]
[359757609,1746304240629,-450.0,0.00019593,2]
[359757611,1746304240639,-450.0,0.00019593,2]
[359757613,1746304240647,-450.0,0.00019593,2]
[359757615,1746304240657,-450.0,0.00019593,2]
[359757617,1746304240666,-450.0,0.00019593,2]
[359757619,1746304240675,-839.08,0.00019593,2]
[359757621,1746304240684,-450.0,0.00019593,2]
[359757622,1746304240693,-450.0,0.00019593,2]
[359757624,1746304240702,-4825.7,0.00019593,2]
[359757627,1746304240712,-450.0,0.00019593,2]
[359757628,1746304240720,-2032.6,0.00019593,2]
[359757629,1746304240730,-578.29,0.00019593,2]
[359757630,1746304240739,-404.32921075,0.00019593,2]
[359757631,1746304240748,-450.0,0.00019593,2]
[359757632,1746304240757,-6113.01,0.00019593,2]
[359757633,1746304240766,-450.0,0.00019593,2]
[359757634,1746304240778,-3887.84,0.00019593,2]
[359757635,1746304240788,-688.7,0.00019593,2]
[359757636,1746304240798,-450.0,0.00019593,2]
[359757637,1746304240808,-1535.69,0.00019593,2]
[359757638,1746304240818,-450.0,0.00019593,2]
[359757639,1746304240827,-3979.13,0.00019593,2]
[359757640,1746304240836,-766.89,0.00019593,2]
[359757641,1746304240845,-83991.74,0.00019593,2]
[359757642,1746304240854,-1426.84,0.00019593,2]
[359757643,1746304240863,-450.0,0.00019593,2]
[359757644,1746304240873,-3626.94,0.00019593,2]
[359757645,1746304240882,-2284.18,0.00019593,2]
[359757646,1746304240891,-450.0,0.00019593,2]
[359757647,1746304240900,-17865.17,0.00019593,2]
[359757648,1746304240910,-580.05,0.00019593,2]
[359757649,1746304240919,-450.0,0.00019593,2]
[359757650,1746304240928,-1228.46,0.00019593,2]
[359757651,1746304240937,-462.01,0.00019593,2]
[359757652,1746304240946,-450.0,0.00019593,2]
[359757653,1746304240955,-450.0,0.00019593,2]
[359757654,1746304240964,-11176.54,0.00019593,2]
[359757655,1746304240974,-450.0,0.00019593,2]
[359757656,1746304240983,-450.0,0.00019593,2]
[359757657,1746304240992,-592.63,0.00019593,2]
[359757658,1746304241002,-450.0,0.00019593,2]
[359757659,1746304241010,-450.0,0.00019593,2]
[359757660,1746304241020,-450.0,0.00019593,2]
[359757661,1746304241029,-1516.22,0.00019593,2]
[359757662,1746304241038,-450.0,0.00019593,2]
[359757663,1746304241047,-450.0,0.00019593,2]
[359757664,1746304241056,-466.62,0.00019593,2]
[359757665,1746304241065,-450.0,0.00019593,2]
[359757666,1746304241074,-450.0,0.00019593,2]
[359757667,1746304241083,-636.65,0.00019593,2]
[359757668,1746304241092,-450.0,0.00019593,2]
[359757669,1746304241102,-476.49,0.00019593,2]
[359757670,1746304241111,-450.0,0.00019593,2]
[359757671,1746304241121,-450.0,0.00019593,2]
[359757672,1746304241130,-450.0,0.00019593,2]
[359757673,1746304241139,-450.0,0.00019593,2]
[359757674,1746304241148,-557.94548119,0.00019593,2]
[359757675,1746304241158,-450.0,0.00019593,2]
[359757676,1746304241167,-450.0,0.00019593,2]
[359757677,1746304241175,-452.79,0.00019593,2]
[359757678,1746304241184,-450.0,0.00019593,2]
[359757679,1746304241194,-450.0,0.00019593,2]
[359757680,1746304241204,-471.88601618,0.00019594,2]
[359757681,1746304241213,-4153.24,0.00019594,2]
[359757682,1746304241222,-9999.99,0.00019594,2]
[359757683,1746304241231,-150.99,0.00019594,2]
[359757684,1746304241240,-150.99,0.00019594,2]
[359757685,1746304241249,-865.52208201,0.0001961,2]
[359757686,1746304241259,-180.13927569,0.00019619,2]
[359757687,1746304241268,-9949.12251777,0.00019629,2]
[359757688,1746304241277,-2494.27845789,0.00019629,2]
[359757689,1746304241286,-200.0,0.00019647,2]
[359757690,1746304241295,-999.0,0.00019671,2]
[359757691,1746304241305,-9949.12251777,0.00019674,2]
[359757692,1746304241314,-2494.27845789,0.00019674,2]
[359757693,1746304241324,-180.13927567,0.00019689,2]
[359757694,1746304241334,-1000.0,0.000197,2]
[359757695,1746304241344,-9949.12251777,0.00019719,2]
[359757696,1746304241354,-2494.27845789,0.00019719,2]
[359757697,1746304241363,-180.13927567,0.0001976,2]
[359757698,1746304241372,-200.0,0.0001976,2]
[359757699,1746304241382,-9949.12251777,0.00019764,2]
[359757700,1746304241394,-2494.27845789,0.00019764,2]
[359757701,1746304241403,-187.323863,0.00019772,2]
[359757702,1746304241414,-189.76331,0.0001979,2]
[359757703,1746304241423,-187.323863,0.00019792,2]
[359757704,1746304241433,-1291.6098677,0.00019799,2]
[359757705,1746304241443,-1347.0,0.000198,2]
[359757706,1746304241452,-9949.12251777,0.0001981,2]
[359757707,1746304241462,-2494.27845789,0.0001981,2]
[359757708,1746304241472,-180.13927567,0.0001983,2]
[359757709,1746304241483,-200.0,0.0001984,2]
[359757710,1746304241492,-450.0,0.00019852,2]
[359757711,1746304241501,-450.0,0.00019852,2]
[359757712,1746304241510,-350.27,0.00019852,2]
[359757713,1746304241519,-450.0,0.00019852,2]
[359757714,1746304241529,-587.3,0.00019852,2]
[359757715,1746304241538,-450.0,0.00019852,2]
[359757716,1746304241547,-450.0,0.00019852,2]
[359757717,1746304241556,-497.99,0.00019852,2]
[359757718,1746304241566,-464.37,0.00019852,2]
[359757719,1746304241575,-450.0,0.00019852,2]
[359757720,1746304241585,-450.0,0.00019852,2]
[359757721,1746304241594,-450.0,0.00019852,2]
[359757722,1746304241603,-450.0,0.00019852,2]
[359757723,1746304241612,-556.7,0.00019852,2]
[359757724,1746304241621,-450.0,0.00019852,2]
[359757725,1746304241631,-450.0,0.00019852,2]
[359757726,1746304241640,-450.0,0.00019852,2]
[359757727,1746304241650,-450.0,0.00019852,2]
[359757728,1746304241659,-450.0,0.00019852,2]
[359757729,1746304241667,-450.0,0.00019852,2]
[359757730,1746304241676,-450.0,0.00019852,2]
[359757731,1746304241685,-558.96235802,0.00019852,2]
[359757732,1746304241695,-1295.14,0.00019852,2]
[359757733,1746304241704,-450.0,0.00019852,2]
[359757734,1746304241713,-450.0,0.00019852,2]
[359757735,1746304241722,-450.0,0.00019852,2]
[359757736,1746304241731,-577.75,0.00019852,2]
[359757737,1746304241741,-473.64,0.00019852,2]
[359757738,1746304241750,-484.28,0.00019852,2]
[359757739,1746304241761,-450.0,0.00019852,2]
[359757740,1746304241770,-792.18,0.00019852,2]
[359757741,1746304241779,-450.0,0.00019852,2]
[359757742,1746304241788,-471.26,0.00019852,2]
[359757743,1746304241798,-1134.65,0.00019852,2]
[359757744,1746304241807,-556.88,0.00019852,2]
[359757745,1746304241819,-792.07,0.00019852,2]
[359757746,1746304241830,-450.0,0.00019852,2]
[359757747,1746304241839,-450.0,0.00019852,2]
[359757748,1746304241849,-470.0,0.00019852,2]
[359757749,1746304241859,-450.0,0.00019852,2]
[359757750,1746304241868,-543.23,0.00019853,2]
[359757751,1746304241877,-450.0,0.00019853,2]
[359757752,1746304241886,-450.0,0.00019853,2]
[359757753,1746304241896,-450.0,0.00019853,2]
[359757754,1746304241905,-250.0,0.00019853,2]
[359757755,1746304241915,-450.0,0.00019853,2]
[359757756,1746304241926,-450.0,0.00019853,2]
[359757757,1746304241935,-450.0,0.00019853,2]
[359757758,1746304241944,-450.0,0.00019853,2]
[359757759,1746304241954,-450.0,0.00019853,2]
[359757760,1746304241964,-450.0,0.00019853,2]
[359757761,1746304241975,-450.0,0.00019853,2]
[359757762,1746304241986,-500.0,0.00019853,2]
[359757763,1746304241997,-450.0,0.00019853,2]